bitfinex-derivatives/quotes_BTCF0:USTF0_20250127
["timestamp","ask_amount","ask_price","bid_price","bid_amount"]
[1738013149227,0.70303791,101860.0,101850.0,1.502]
[1738013149427,0.196416,101850.0,101840.0,0.00014699]
[1738013149629,0.69599313,101850.0,101840.0,0.00014699]
[1738013149829,0.557216,101850.0,101840.0,0.00014699]
[1738013150424,0.3608,101850.0,101840.0,1.50014699]
[1738013150620,0.44852932,101860.0,101840.0,1.99972412]
[1738013150816,0.44852932,101860.0,101850.0,0.33519313]
[1738013151020,0.08772932,101860.0,101850.0,0.33519313]
[1738013151426,0.08772932,101860.0,101850.0,0.69599313]
[1738013152224,0.00014699,101870.0,101850.0,0.49957713]
[1738013152525,0.14584091,101880.0,101860.0,0.49957713]
[1738013152824,0.14584091,101880.0,101870.0,0.69595413]
[1738013153124,0.11749014,101890.0,101880.0,0.196358]
[1738013153327,0.11749014,101890.0,101880.0,0.89893513]
[1738013153522,0.65885588,101920.0,101880.0,0.70257713]
[1738013153721,0.17514784,101910.0,101900.0,0.557107]
[1738013154028,0.17529483,101910.0,101900.0,0.69588413]
[1738013154724,0.17529483,101910.0,101900.0,0.77095312]
[1738013155126,0.18129483,101910.0,101900.0,0.77095312]
[1738013155325,0.18129483,101910.0,101900.0,0.557107]
[1738013155833,0.17529483,101910.0,101900.0,0.557107]
[1738013156023,0.17529483,101910.0,101900.0,2.057107]
[1738013156224,0.53909483,101910.0,101900.0,1.696307]
[1738013156426,0.17829483,101910.0,101900.0,1.696307]
[1738013156624,0.00314699,101910.0,101900.0,1.696307]
[1738013156825,0.00314699,101910.0,101900.0,2.057107]
[1738013157029,0.00014699,101910.0,101900.0,2.057107]
[1738013157334,0.00014699,101910.0,101900.0,1.696307]
[1738013158623,0.19644799,101910.0,101900.0,1.696307]
[1738013159923,0.55724799,101910.0,101900.0,1.5]
[1738013160132,0.19632,101900.0,101890.0,0.00014699]
[1738013160428,0.55712,101900.0,101890.0,0.00014699]
[1738013160638,0.196358,101880.0,101860.0,0.196393]
[1738013160936,0.3608,101870.0,101860.0,0.196393]
[1738013161122,0.3608,101870.0,101860.0,1.696393]
[1738013161523,0.4631,101890.0,101860.0,2.07464612]
[1738013161524,0.3608,101890.0,101860.0,2.07464612]
[1738013161728,0.3608,101900.0,101890.0,0.196339]
[1738013161729,0.3668,101900.0,101890.0,0.196339]
[1738013162226,0.3608,101900.0,101890.0,0.196339]
[1738013162626,0.65956299,101910.0,101890.0,0.196339]
[1738013163034,0.19632,101900.0,101890.0,0.196339]
[1738013163339,0.65955299,101910.0,101900.0,0.19632]
[1738013163531,0.55725299,101910.0,101900.0,0.19632]
[1738013163840,0.00014699,101910.0,101900.0,0.19632]
[1738013164137,0.36227288,101920.0,101910.0,0.196301]
[1738013164138,0.00147288,101920.0,101910.0,0.196301]
[1738013164332,0.00147288,101920.0,101910.0,0.557101]
[1738013164733,0.00147288,101920.0,101910.0,2.057101]
[1738013165829,0.00147288,101920.0,101910.0,1.696301]
[1738013166025,0.00147288,101920.0,101910.0,2.057101]
[1738013166638,0.00014699,101930.0,101920.0,0.196281]
[1738013166827,0.00014699,101930.0,101920.0,0.77092712]
[1738013167231,0.55720899,101930.0,101920.0,0.41012712]
[1738013167431,0.55720899,101930.0,101920.0,0.196281]
[1738013167635,0.198281,101920.0,101910.0,1.696295]
[1738013167941,0.3628,101920.0,101900.0,0.21399311]
[1738013168141,0.00014699,101930.0,101920.0,0.196281]
[1738013168338,0.00614699,101930.0,101920.0,2.27092712]
[1738013168839,0.3608,101950.0,101940.0,0.196243]
[1738013169039,0.99577709,101960.0,101940.0,0.557043]
[1738013169340,0.3608,101950.0,101930.0,0.196258]
[1738013169530,0.3608,101940.0,101930.0,0.41010412]
[1738013169933,0.3608,101940.0,101930.0,0.196258]
[1738013170334,0.196262,101930.0,101920.0,0.19641599]
[1738013170536,0.557047,101940.0,101930.0,0.197262]
[1738013170738,0.36894699,101950.0,101940.0,0.196243]
[1738013170939,0.00814699,101950.0,101940.0,0.196243]
[1738013171236,0.00014699,101950.0,101940.0,0.77088912]
[1738013173236,0.00014699,101950.0,101940.0,0.87328912]
[1738013173633,0.01414699,101950.0,101940.0,0.87428912]
[1738013174042,0.00514699,101950.0,101940.0,2.37328912]
[1738013174257,0.01014699,101950.0,101940.0,2.37428912]
[1738013174449,0.00814699,101950.0,101940.0,2.37428912]
[1738013175457,0.00814699,101950.0,101940.0,0.87428912]
[1738013175758,0.10861324,101960.0,101950.0,0.196223]
[1738013175953,0.10861324,101960.0,101950.0,0.557023]
[1738013176163,0.10861324,101960.0,101950.0,0.77086912]
[1738013176352,0.40215575,101980.0,101970.0,0.196185]
[1738013176549,0.20598775,101980.0,101970.0,0.41003112]
[1738013176757,0.20598775,101980.0,101970.0,0.77083112]
[1738013177058,0.20598775,101980.0,101970.0,1.91003112]
[1738013177756,0.56678775,101980.0,101960.0,0.19634999]
[1738013177963,0.556985,101970.0,101960.0,0.00014699]
[1738013178164,0.556985,101970.0,101960.0,0.19635099]
[1738013178466,0.196185,101970.0,101960.0,0.19635099]
[1738013178758,0.57878775,101980.0,101970.0,0.196185]
[1738013178960,0.57878775,101980.0,101970.0,0.41003112]
[1738013179658,0.57578775,101980.0,101970.0,0.196185]
[1738013179859,0.21498775,101980.0,101970.0,0.77083112]
[1738013180053,0.875797,102020.0,102000.0,0.196113]
[1738013180248,0.196108,102010.0,102000.0,0.40995912]
[1738013180456,0.556908,102010.0,102000.0,0.196113]
[1738013180853,0.196108,102010.0,102000.0,0.196113]
[1738013181165,0.556908,102010.0,102000.0,0.196113]
[1738013181459,0.884793,102020.0,102010.0,0.196108]
[1738013182160,0.884793,102020.0,102000.0,0.41097012]
[1738013182361,0.884793,102020.0,102000.0,0.197124]
[1738013182362,0.196108,102010.0,102000.0,0.197124]
[1738013182565,0.556908,102010.0,102000.0,0.001]
[1738013182957,0.3608,102010.0,101990.0,0.00014699]
[1738013183264,0.196185,101970.0,101960.0,0.2062698]
[1738013183464,0.556985,101970.0,101960.0,0.196201]
[1738013184055,0.3608,101970.0,101960.0,0.196201]
[1738013184262,0.55695,101990.0,101980.0,0.196166]
[1738013184560,0.19615,101990.0,101980.0,0.196166]
[1738013184863,0.55695,101990.0,101980.0,0.196166]
[1738013185165,0.196166,101980.0,101970.0,0.19632799]
[1738013185354,0.556966,101980.0,101970.0,0.00014699]
[1738013185559,0.659566,101980.0,101970.0,0.00014699]
[1738013186261,0.768566,101980.0,101970.0,0.00014699]
[1738013186653,0.768566,101980.0,101970.0,0.00214699]
[1738013187468,0.768566,101980.0,101970.0,0.00314699]
[1738013188657,0.196204,101960.0,101950.0,1.50147104]
[1738013188861,1.05647581,101960.0,101950.0,1.50147104]
[1738013189366,0.917804,101960.0,101950.0,1.50147104]
[1738013189569,0.917804,101960.0,101950.0,0.00147104]
[1738013190071,0.917804,101960.0,101950.0,0.33636685]
[1738013190361,0.3608,101960.0,101950.0,0.33936685]
[1738013190862,0.00014699,101970.0,101960.0,0.196204]
[1738013191161,0.196166,101980.0,101970.0,0.19617]
[1738013191568,0.556966,101980.0,101970.0,0.19617]
[1738013191754,0.663866,101980.0,101970.0,1.69617]
[1738013192266,0.663866,101980.0,101950.0,0.55299785]
[1738013192267,0.4677,101980.0,101950.0,0.50394285]
[1738013192470,0.556992,101970.0,101960.0,0.19635099]
[1738013192767,0.663877,101980.0,101970.0,0.196185]
[1738013193364,0.196185,101970.0,101960.0,0.19934199]
[1738013193672,0.556985,101970.0,101960.0,0.00414699]
[1738013193858,0.556985,101970.0,101960.0,0.00114699]
[1738013194260,0.556985,101970.0,101960.0,0.19635199]
[1738013194458,0.3608,101970.0,101960.0,0.19635199]
[1738013194665,0.66387,101980.0,101970.0,0.196185]
[1738013195270,0.4677,101980.0,101970.0,1.696185]
[1738013195663,0.663866,101980.0,101970.0,1.696185]
[1738013195867,0.8385133,101980.0,101970.0,1.696185]
[1738013196068,0.6423473,101980.0,101960.0,0.00414699]
[1738013196264,0.556985,101970.0,101960.0,0.00414699]
[1738013196459,0.57449592,101970.0,101930.0,0.196257]
[1738013196661,0.557039,101950.0,101940.0,1.5]
[1738013196869,0.3608,101950.0,101940.0,1.90993892]
[1738013197063,0.1068,101960.0,101940.0,2.07449592]
[1738013197265,0.196191,101970.0,101960.0,0.199205]
[1738013197266,0.556991,101970.0,101960.0,0.199205]
[1738013197862,0.3608,101970.0,101960.0,0.196205]
[1738013198157,0.6430143,101980.0,101960.0,0.21369592]
[1738013198471,0.17479429,101980.0,101970.0,0.196185]
[1738013199268,0.37096029,101980.0,101970.0,0.196185]
[1738013199669,0.73176029,101980.0,101970.0,0.196185]
[1738013200374,0.73376029,101980.0,101970.0,0.196185]
[1738013200768,0.37296029,101980.0,101970.0,0.196185]
[1738013201074,0.73476029,101980.0,101970.0,0.196185]
[1738013201376,0.196185,101970.0,101960.0,0.196197]
[1738013201567,0.556985,101970.0,101960.0,0.196197]
[1738013201874,0.196185,101970.0,101960.0,0.196197]
[1738013202074,0.556985,101970.0,101960.0,0.196197]
[1738013202776,0.556985,101970.0,101960.0,1.696197]
[1738013203276,0.556985,101970.0,101960.0,1.698197]
[1738013203576,0.556985,101970.0,101960.0,1.699197]
[1738013205065,0.196185,101970.0,101960.0,1.699197]
[1738013205261,0.556985,101970.0,101960.0,1.699197]
[1738013205466,0.87817248,101970.0,101960.0,1.699197]
[1738013206374,0.51737248,101970.0,101960.0,1.699197]
[1738013206681,0.87817248,101970.0,101960.0,1.699197]
[1738013207973,0.32118748,101970.0,101960.0,1.699197]
[1738013208175,0.32118748,101970.0,101960.0,0.77369292]
[1738013208678,0.32118748,101970.0,101960.0,2.58339292]
[1738013209178,0.51737248,101970.0,101960.0,2.22259292]
[1738013209365,0.87817248,101970.0,101960.0,1.699197]
[1738013209570,0.87817248,101970.0,101960.0,0.003]
[1738013209969,0.87817248,101970.0,101960.0,1.699205]
[1738013210169,0.556985,101970.0,101960.0,1.699205]
[1738013210364,0.556985,101970.0,101960.0,1.503]
[1738013210777,0.665485,101970.0,101960.0,1.503]
[1738013210980,0.665485,101970.0,101960.0,0.003]
[1738013211374,0.665485,101970.0,101960.0,1.699205]
[1738013211677,0.556985,101970.0,101960.0,1.699205]
[1738013212676,0.3608,101970.0,101960.0,1.96195092]
[1738013212972,0.70365617,101980.0,101970.0,0.196186]
[1738013213770,0.00014699,101980.0,101970.0,0.196186]
[1738013214176,0.00114699,101980.0,101970.0,0.196186]
[1738013214380,0.00314699,101980.0,101970.0,0.196186]
[1738013214579,0.00314699,101980.0,101970.0,0.33475308]
[1738013215277,0.72998686,102000.0,101970.0,0.33475308]
[1738013215278,0.20451577,102000.0,101970.0,0.69555308]
[1738013215485,0.34100561,102010.0,102000.0,0.196128]
[1738013215684,0.17850781,102020.0,102010.0,0.196109]
[1738013215880,0.00996052,102040.0,102030.0,0.19607]
[1738013216186,0.3171,102050.0,102040.0,0.196051]
[1738013216379,0.19955302,102060.0,102050.0,0.196032]
[1738013216582,0.19970001,102060.0,102050.0,0.69539908]
[1738013217887,0.20870001,102060.0,102050.0,0.69639908]
[1738013218382,0.00147066,102070.0,102060.0,0.196013]
[1738013218588,0.26441951,102070.0,102060.0,0.69538008]
[1738013218980,0.26294885,102070.0,102060.0,0.69538008]
[1738013219774,0.26294885,102070.0,102060.0,0.33458008]
[1738013219981,0.27094885,102070.0,102060.0,0.69638008]
[1738013220274,0.27394885,102070.0,102060.0,0.69638008]
[1738013221483,0.32054896,102090.0,102080.0,0.195974]
[1738013221684,0.1,102100.0,102090.0,0.195955]
[1738013221985,0.1,102100.0,102090.0,2.19532208]
[1738013223182,0.106,102100.0,102090.0,2.19632208]
[1738013223379,0.556699,102120.0,102090.0,2.00036708]
[1738013223579,0.38030037,102140.0,102110.0,0.63793416]
[1738013223883,0.38030037,102140.0,102130.0,1.05604508]
[1738013224384,0.17456075,102130.0,102120.0,0.49951407]
[1738013224589,0.37043875,102130.0,102120.0,0.36094699]
[1738013225381,0.17456075,102130.0,102120.0,0.49951407]
[1738013225986,0.73123875,102130.0,102120.0,0.00014699]
[1738013226184,0.195913,102120.0,102100.0,0.3608]
[1738013226379,0.195913,102120.0,102110.0,0.002]
[1738013226380,0.773213,102120.0,102110.0,0.002]
[1738013226884,0.773213,102120.0,102100.0,0.556731]
[1738013227490,0.556716,102110.0,102090.0,0.00146902]
[1738013227686,0.3608,102100.0,102090.0,0.00146902]
[1738013227892,0.69528308,102110.0,102090.0,0.00146902]
[1738013228086,0.3608,102110.0,102090.0,0.00146902]
[1738013228288,0.00014699,102120.0,102110.0,0.195916]
[1738013228495,0.001,102130.0,102120.0,0.195897]
[1738013228696,0.001,102130.0,102120.0,0.69526408]
[1738013229193,0.001,102130.0,102120.0,2.19526408]
[1738013229493,0.00146977,102140.0,102120.0,2.19526408]
[1738013229494,0.00146977,102140.0,102130.0,0.195878]
[1738013229688,0.00161676,102140.0,102130.0,0.556678]
[1738013230794,0.00461676,102140.0,102130.0,0.556678]
[1738013232688,0.00461676,102140.0,102120.0,2.056694]
[1738013232689,0.20047576,102140.0,102120.0,2.056694]
[1738013232997,0.56127576,102140.0,102120.0,2.056694]
[1738013233395,0.195878,102130.0,102120.0,1.8608]
[1738013235290,0.55927876,102140.0,102120.0,2.056692]
[1738013235896,0.00161676,102140.0,102130.0,0.556678]
[1738013236395,0.00161676,102140.0,102130.0,1.8608]
[1738013236597,0.00161676,102140.0,102130.0,2.056678]
[1738013236902,0.00261676,102140.0,102130.0,2.26962978]
[1738013237394,0.00261676,102140.0,102130.0,2.056678]
[1738013237598,0.56127576,102140.0,102130.0,1.5]
[1738013238496,0.195898,102120.0,102110.0,0.00014699]
[1738013238795,0.556698,102120.0,102110.0,0.00014699]
[1738013239593,0.556698,102120.0,102110.0,1.50014699]
[1738013239795,0.195932,102110.0,102090.0,0.55822102]
[1738013239985,0.19192837,102110.0,102090.0,0.55822102]
[1738013240793,0.556703,102120.0,102100.0,1.695925]
[1738013240993,0.195903,102120.0,102110.0,0.195917]
[1738013241199,0.195917,102110.0,102100.0,2.056731]
[1738013241995,0.195917,102110.0,102100.0,1.5]
[1738013242294,0.556717,102110.0,102100.0,0.004]
[1738013242494,0.195936,102100.0,102090.0,0.00114699]
[1738013242796,0.556736,102100.0,102090.0,1.50114699]
[1738013242989,0.195994,102070.0,102050.0,0.55829652]
[1738013243193,0.556794,102070.0,102050.0,0.55829652]
[1738013243387,0.3608,102070.0,102050.0,0.55829652]
[1738013243598,0.556797,102070.0,102060.0,0.196013]
[1738013243902,0.196013,102060.0,102050.0,0.55829552]
[1738013244096,0.556795,102070.0,102060.0,0.196013]
[1738013244504,0.556795,102070.0,102050.0,0.55844251]
[1738013245002,0.195995,102070.0,102060.0,0.196013]
[1738013245701,0.36094699,102080.0,102050.0,0.56144351]
[1738013246003,0.196013,102060.0,102050.0,0.56244351]
[1738013246396,0.196013,102060.0,102050.0,0.00561651]
[1738013246596,0.556813,102060.0,102050.0,0.00561651]
[1738013247192,0.556813,102060.0,102050.0,0.00261651]
[1738013247392,0.35088554,102060.0,102050.0,0.00261651]
[1738013247593,0.66443732,102060.0,102040.0,0.1687078]
[1738013247793,0.556832,102050.0,102040.0,0.1687078]
[1738013249106,0.556832,102050.0,102040.0,0.1727078]
[1738013249605,0.556832,102050.0,102040.0,0.1737078]
[1738013249803,0.57375178,102050.0,102040.0,8e-07]
[1738013250005,0.92275978,102050.0,102020.0,0.61859528]
[1738013250304,0.196109,102010.0,102000.0,0.49365155]
[1738013250492,0.57375178,102020.0,102000.0,0.49365155]
[1738013250693,0.49931336,102040.0,102010.0,0.3608]
[1738013250899,0.556874,102030.0,102010.0,0.556897]
[1738013251100,0.556874,102030.0,102020.0,0.001]
[1738013251301,0.556874,102030.0,102020.0,0.005]
[1738013251302,0.69553435,102030.0,102020.0,0.005]
[1738013251711,0.69553435,102030.0,102020.0,0.001]
[1738013252006,0.80213435,102030.0,102020.0,0.001]
[1738013252612,0.19609,102020.0,102010.0,0.00014699]
[1738013252798,0.69540336,102020.0,102010.0,0.00014699]
[1738013253312,0.90580336,102020.0,102010.0,0.00014699]
[1738013254208,0.90780336,102020.0,102010.0,0.00014699]
[1738013254414,0.90980336,102020.0,102010.0,0.00014699]
[1738013255205,1.01371336,102020.0,102000.0,0.1]
[1738013255408,0.196145,102000.0,101980.0,0.3608]
[1738013255618,0.196147,101990.0,101980.0,0.556962]
[1738013256609,0.556947,101990.0,101980.0,0.196162]
[1738013256805,0.556947,101990.0,101980.0,0.197162]
[1738013257215,0.556947,101990.0,101980.0,0.200162]
[1738013257506,0.556947,101990.0,101980.0,0.199162]
[1738013257708,0.556947,101990.0,101980.0,0.200162]
[1738013257904,0.556947,101990.0,101980.0,0.004]
[1738013258104,0.69546036,101990.0,101980.0,0.004]
[1738013258916,0.90856036,101990.0,101980.0,0.004]
[1738013261414,0.196167,101980.0,101970.0,9.802e-05]
[1738013261715,0.196244,101940.0,101930.0,0.1019]
[1738013261916,0.33475736,101940.0,101930.0,0.01013952]
[1738013262215,0.69555736,101940.0,101930.0,1.5]
[1738013262806,0.33475736,101940.0,101930.0,1.5]
[1738013263016,0.69555736,101940.0,101930.0,1.5]
[1738013264427,0.69555736,101940.0,101930.0,1.504]
[1738013265619,0.69555736,101940.0,101930.0,1.700263]
[1738013266419,0.69555736,101940.0,101930.0,1.504]
[1738013267216,0.69555736,101940.0,101930.0,1.501]
[1738013267703,0.69555736,101940.0,101930.0,0.001]
[1738013267906,0.196263,101930.0,101920.0,0.656173]
[1738013268102,0.196263,101930.0,101920.0,2.156173]
[1738013268512,0.196263,101930.0,101920.0,1.795373]
[1738013268708,0.69557636,101930.0,101920.0,1.5991]
[1738013268909,0.557063,101930.0,101920.0,1.5991]
[1738013269106,0.69557636,101930.0,101920.0,1.5991]
[1738013269418,0.196282,101920.0,101910.0,0.01010456]
[1738013269617,0.196321,101900.0,101890.0,0.00147119]
[1738013269917,0.69563436,101900.0,101890.0,0.00147119]
[1738013270119,0.33483436,101900.0,101890.0,0.00147119]
[1738013270318,0.69563436,101900.0,101890.0,0.01131869]
[1738013270518,0.69563436,101900.0,101890.0,0.00147119]
[1738013271119,0.69563436,101900.0,101890.0,0.20081119]
[1738013271817,0.69563436,101900.0,101890.0,0.00447119]
[1738013272008,0.49931336,101900.0,101860.0,0.36092277]
[1738013272206,0.13851336,101870.0,101860.0,0.10822277]
[1738013272413,0.69568136,101880.0,101860.0,0.30461577]
[1738013272818,0.69569136,101870.0,101860.0,0.1081]
[1738013273610,0.557178,101870.0,101860.0,0.1111]
[1738013274311,0.556178,101870.0,101860.0,0.1111]
[1738013274719,0.3608,101870.0,101860.0,0.307498]
[1738013275118,0.196378,101870.0,101860.0,0.308498]
[1738013275315,0.557178,101870.0,101860.0,0.308498]
[1738013276216,0.557178,101870.0,101860.0,0.305498]
[1738013276419,0.557178,101870.0,101860.0,0.307498]
[1738013276616,0.37096134,101880.0,101870.0,0.196378]
[1738013276823,0.19650599,101880.0,101870.0,0.196378]
[1738013277020,0.00014699,101880.0,101870.0,0.196378]
[1738013277713,0.00014699,101880.0,101870.0,0.197378]
[1738013277917,0.00014699,101880.0,101870.0,0.560178]
[1738013278117,0.00014699,101880.0,101870.0,0.199378]
[1738013278322,0.00014699,101880.0,101870.0,0.560178]
[1738013278520,0.00014699,101880.0,101870.0,0.69869136]
[1738013278917,0.00014699,101880.0,101870.0,1.83789136]
[1738013279121,0.00014699,101880.0,101870.0,0.199378]
[1738013279315,0.19650599,101880.0,101870.0,0.199378]
[1738013280928,0.19650599,101880.0,101870.0,0.20956226]
[1738013281129,0.00014699,101880.0,101870.0,0.20956226]
[1738013281329,0.00014699,101880.0,101870.0,0.34807562]
[1738013281725,0.00014699,101880.0,101870.0,0.70887562]
[1738013283424,0.19650599,101880.0,101870.0,0.20956226]
[1738013283825,0.55730599,101880.0,101870.0,0.003]
[1738013284027,0.69581935,101880.0,101870.0,0.003]
[1738013284225,0.63797371,101880.0,101840.0,0.10997273]
[1738013284525,0.196417,101850.0,101840.0,0.30640873]
[1738013284830,0.196417,101850.0,101840.0,0.80572209]
[1738013285028,0.3608,101860.0,101840.0,0.60928609]
[1738013285329,0.13866035,101860.0,101840.0,0.10997273]
[1738013285531,0.196417,101850.0,101840.0,0.00247273]
[1738013285725,0.196417,101850.0,101840.0,0.19890873]
[1738013286034,0.196417,101850.0,101840.0,0.197436]
[1738013286628,0.557217,101850.0,101840.0,0.003]
[1738013286825,0.196417,101850.0,101840.0,0.003]
[1738013287029,0.196417,101850.0,101840.0,0.002]
[1738013287328,0.196417,101850.0,101840.0,0.003]
[1738013287717,0.196417,101850.0,101840.0,0.001]
[1738013287927,0.198417,101850.0,101840.0,0.196436]
[1738013288128,0.05102503,101850.0,101840.0,0.196436]
[1738013288431,0.198425,101850.0,101830.0,0.557248]
[1738013288624,0.196436,101840.0,101830.0,0.557248]
[1738013288825,0.557236,101840.0,101820.0,0.67678645]
[1738013289020,0.557236,101840.0,101820.0,0.66677]
[1738013289021,0.69574936,101840.0,101820.0,0.66677]
[1738013289218,0.49931336,101830.0,101810.0,0.660889]
[1738013289434,0.196475,101820.0,101810.0,0.660889]
[1738013289618,0.196475,101820.0,101810.0,0.557289]
[1738013290521,0.36094699,101830.0,101820.0,0.196475]
[1738013290522,0.00014699,101830.0,101820.0,0.196475]
[1738013291929,0.00014699,101830.0,101820.0,0.198475]
[1738013292324,0.00014699,101830.0,101820.0,0.199475]
[1738013292528,0.00014699,101830.0,101820.0,0.560275]
[1738013292727,0.00014699,101830.0,101820.0,0.69878836]
[1738013292922,0.00014699,101830.0,101820.0,0.560275]
[1738013293127,0.69591635,101830.0,101820.0,0.003]
[1738013293533,0.79561635,101830.0,101820.0,0.003]
[1738013294236,0.196494,101810.0,101800.0,0.38491543]
[1738013294536,1.05660736,101810.0,101800.0,0.38491543]
[1738013294726,0.196533,101790.0,101780.0,0.28491543]
[1738013294931,0.196552,101780.0,101770.0,0.34318271]
[1738013295139,0.196571,101770.0,101760.0,0.42182975]
[1738013295330,0.196591,101760.0,101750.0,0.39365155]
[1738013295524,0.83341772,101760.0,101750.0,0.39365155]
[1738013295735,0.69490436,101760.0,101750.0,0.39365155]
[1738013296639,0.554391,101760.0,101750.0,0.39365155]
[1738013296843,0.193591,101760.0,101750.0,0.39365155]
[1738013297142,0.554391,101760.0,101750.0,0.39365155]
[1738013297330,0.69290436,101760.0,101750.0,0.39565155]
[1738013297531,0.554391,101760.0,101750.0,0.39565155]
[1738013298127,0.69290436,101760.0,101750.0,0.39565155]
[1738013298332,0.69290436,101760.0,101750.0,0.39365155]
[1738013298540,0.69690436,101760.0,101750.0,0.39365155]
[1738013298738,0.83541772,101760.0,101750.0,0.39365155]
[1738013298940,0.19661,101750.0,101740.0,0.44988748]
[1738013299140,0.196629,101740.0,101730.0,1.00441806]
[1738013299339,0.79584236,101740.0,101730.0,1.00441806]
[1738013299536,0.196668,101720.0,101710.0,0.00147468]
[1738013299739,0.196687,101710.0,101700.0,0.1]
[1738013299941,0.69600036,101710.0,101700.0,0.1]
[1738013300341,0.69600036,101710.0,101670.0,0.765761]
[1738013300342,0.196727,101690.0,101670.0,0.765761]
[1738013300534,0.3608,101700.0,101670.0,0.4638]
[1738013300837,0.55766099,101700.0,101680.0,0.557542]
[1738013301039,0.00014699,101700.0,101690.0,0.196726]
[1738013301241,0.55749,101710.0,101700.0,0.00185301]
[1738013301636,0.55749,101710.0,101690.0,0.196721]
[1738013301950,0.196726,101690.0,101680.0,0.00014699]
[1738013302147,0.557525,101700.0,101680.0,0.19688999]
[1738013302439,0.557526,101690.0,101680.0,0.00014699]
[1738013303340,0.77243437,101690.0,101680.0,0.00014699]
[1738013303938,0.77243437,101690.0,101680.0,0.00314699]
[1738013304738,0.77343437,101690.0,101680.0,0.00314699]
[1738013306040,0.77343437,101690.0,101680.0,0.00014699]
[1738013306238,0.77443437,101690.0,101680.0,0.00014699]
[1738013307734,0.559526,101690.0,101680.0,0.00014699]
[1738013308337,0.77443437,101690.0,101680.0,0.00014699]
[1738013308939,0.196765,101670.0,101640.0,0.55762]
[1738013309142,0.77251537,101650.0,101630.0,0.55771474]
[1738013309545,0.77251537,101650.0,101620.0,0.1057]
[1738013309546,0.196842,101630.0,101620.0,0.1057]
[1738013309948,0.57570837,101640.0,101620.0,0.302558]
[1738013309949,0.557627,101640.0,101620.0,0.302558]
[1738013310147,0.57585536,101640.0,101610.0,0.3608]
[1738013310447,0.00014699,101640.0,101610.0,0.3608]
[1738013310750,0.00014699,101640.0,101630.0,0.196842]
[1738013311139,0.3608,101670.0,101660.0,0.196784]
[1738013311539,0.36227634,101680.0,101650.0,0.3608]
[1738013311740,0.57570837,101710.0,101680.0,0.196735]
[1738013311946,0.57570837,101700.0,101690.0,0.196726]
[1738013312141,0.3608,101700.0,101690.0,0.196726]
[1738013312441,0.08740528,101690.0,101680.0,0.00014699]
[1738013312639,0.66311365,101690.0,101680.0,0.00014699]
[1738013312847,0.85983965,101690.0,101680.0,0.00014699]
[1738013313547,0.66311365,101690.0,101680.0,0.00014699]
[1738013313747,0.08740528,101690.0,101680.0,0.55769299]
[1738013314146,0.08740528,101690.0,101680.0,0.55969299]
[1738013314950,0.11670905,101700.0,101690.0,0.196726]
[1738013315153,0.32025046,101710.0,101700.0,0.196707]
[1738013315652,0.32025046,101710.0,101700.0,0.658207]
[1738013316254,0.87774746,101710.0,101690.0,0.557522]
[1738013316655,1.09265583,101710.0,101690.0,0.196722]
[1738013316952,0.196707,101700.0,101680.0,0.46164699]
[1738013317149,0.196707,101700.0,101690.0,0.196726]
[1738013317354,0.41326837,101710.0,101690.0,0.196726]
[1738013317653,0.00114699,101710.0,101700.0,0.196707]
[1738013317847,0.00314699,101710.0,101700.0,0.557507]
[1738013318553,0.00114699,101710.0,101700.0,0.557507]
[1738013318751,0.00214699,101710.0,101700.0,0.557507]
[1738013319251,0.00614699,101710.0,101700.0,0.557507]
[1738013319553,0.00714699,101710.0,101700.0,0.557507]
[1738013320655,0.20385299,101710.0,101700.0,0.557507]
[1738013320850,0.20385299,101710.0,101700.0,0.196707]
[1738013321942,0.56465299,101710.0,101700.0,0.196707]
[1738013322149,0.20385299,101710.0,101700.0,0.196707]
[1738013322350,0.56465299,101710.0,101700.0,0.196707]
[1738013322550,0.00714699,101710.0,101700.0,0.196707]
[1738013322754,0.00214699,101710.0,101700.0,0.557507]
[1738013322945,0.00314699,101710.0,101700.0,0.557507]
[1738013324055,0.196725,101700.0,101690.0,0.661036]
[1738013324357,0.3608,101700.0,101680.0,0.10084699]
[1738013324546,0.77245237,101690.0,101680.0,0.00014699]
[1738013326053,0.77245237,101690.0,101680.0,0.00214699]
[1738013326252,0.77245237,101690.0,101660.0,0.00147523]
[1738013326253,0.196764,101670.0,101660.0,0.00147523]
[1738013326450,0.3608,101680.0,101660.0,0.00147523]
[1738013326654,0.55755,101680.0,101660.0,0.19824823]
[1738013326956,0.55755,101680.0,101670.0,0.196764]
[1738013327261,0.19675,101680.0,101670.0,0.196764]
[1738013327850,0.00014699,101690.0,101680.0,0.196744]
[1738013328044,0.00014699,101690.0,101680.0,0.557544]
[1738013328251,0.00014699,101690.0,101680.0,0.196744]
[1738013328450,0.00014699,101690.0,101680.0,0.557544]
[1738013328658,0.00014699,101690.0,101680.0,0.196744]
[1738013329161,0.00014699,101690.0,101680.0,0.657344]
[1738013329657,0.00014699,101690.0,101680.0,0.659344]
[1738013329851,0.00014699,101690.0,101680.0,0.4626]
[1738013330048,0.00014699,101690.0,101680.0,0.659344]
[1738013331053,0.16498665,101720.0,101710.0,0.196686]
[1738013331258,0.36165365,101720.0,101710.0,0.557486]
[1738013331952,0.1981429,101720.0,101710.0,0.557486]
[1738013332454,0.2001429,101720.0,101710.0,0.557486]
[1738013332853,0.0034759,101720.0,101710.0,0.557486]
[1738013333160,0.2001429,101720.0,101710.0,0.557486]
[1738013333358,0.196686,101710.0,101700.0,0.19684999]
[1738013333559,0.196686,101710.0,101700.0,0.00014699]
[1738013333764,0.557486,101710.0,101700.0,0.00014699]
[1738013334650,0.558486,101710.0,101700.0,0.00014699]
[1738013334846,0.197686,101710.0,101700.0,0.00014699]
[1738013335157,0.558486,101710.0,101700.0,0.00014699]
[1738013335358,0.559486,101710.0,101700.0,0.00014699]
[1738013335861,0.88158498,101710.0,101700.0,2.933e-05]
[1738013336754,0.88158498,101710.0,101700.0,0.55753433]
[1738013336755,0.32409898,101710.0,101700.0,0.55753433]
[1738013337361,0.32409898,101710.0,101700.0,2.05753433]
[1738013337551,0.37951574,101710.0,101700.0,2.05753433]
[1738013337860,0.37951574,101710.0,101700.0,1.69673433]
[1738013338057,0.37951574,101710.0,101700.0,2.05753433]